Cogmind - Beta 9.6 @@@ ROGUE MODE // 2020.05.16 @ 15:45:05 Player: RNGesus Result: Self-destructed Performance ------------- Evolutions (3) 1500 Regions Visited (8) 1600 Robots Destroyed (21) 105 Value Destroyed (271) 271 Prototype IDs (23) 460 Alien Tech Used (0) 0 Bonus (300) 300 TOTAL SCORE: 4236 Bonus ------- Aligned with FarCom 300 Cogmind --------- Core Integrity 700/700 Matter 290/300 Energy 86/125 System Corruption 0% Temperature Cool (0) Movement Core (200) Ox3 Location -7/Factory Parts ------- > --- POWER (1) -------- Light Ion Engine > --- PROPULSION (4) --- Flight Unit Flight Unit Flight Unit > --- UTILITY (6) ------ Enhanced Optical Array Advanced Terrain Scanner Hacking Suite System Shield System Shield > --- WEAPON (2) ------- Enhanced Autogun Enhanced Autogun > --- INVENTORY (4) ---- Light Nuclear Core Medium Treads Medium Storage Unit Field Lobotomy Kit Peak State ------------ > --- POWER ------------ Light Ion Engine > --- PROPULSION ------- Medium Treads Flight Unit Flight Unit Flight Unit > --- UTILITY ---------- Enhanced Optical Array Advanced Terrain Scanner Hacking Suite System Shield System Shield > --- WEAPON ----------- Enhanced Autogun Enhanced Autogun > --- INVENTORY -------- Light Nuclear Core Medium Storage Unit Field Lobotomy Kit [Rating: 33] Favorites ----------- Power Light Ion Engine Engine Light Ion Engine Propulsion Flight Unit Treads Medium Treads Flight Unit Flight Unit Utility Hacking Suite Device Improved Sensor Array Processor Enhanced Optical Array Hackware Hacking Suite Weapon Enhanced Autogun Energy Gun Heavy EM Pulse Gun Ballistic Gun Enhanced Autogun Ballistic Cannon Light Cannon Launcher Grenade Launcher Slashing Weapon Axe Build | -11 -10 -10 -9 -9 -9 -8 -8 -7 ------- Run | Scr Mat Min Mat Min Exi Min Mat Fac Slots Evolved 6 | . . . 2 . . . 2 2 Power . | . . . . . . . . . Propulsion 2 | . . . 1 . . . 1 . Utility 4 | . . . 1 . . . 1 2 Weapon . | . . . . . . . . . Parts Attached 35 | . 9 . 4 . . 7 13 2 Power 3 | . 1 . . . . 1 1 . Engine 3 | . 1 . . . . 1 1 . Core . | . . . . . . . . . Reactor . | . . . . . . . . . Propulsion 11 | . 2 . . . . 3 5 1 Treads 1 | . . . . . . . . 1 Leg . | . . . . . . . . . Wheel . | . . . . . . . . . Hover . | . . . . . . . . . Flight 10 | . 2 . . . . 3 5 . Utility 7 | . . . 2 . . 1 3 1 Device 3 | . . . 1 . . 1 1 . Storage . | . . . . . . . . . Processor 1 | . . . . . . . . 1 Hackware 3 | . . . 1 . . . 2 . Protection . | . . . . . . . . . Artifact . | . . . . . . . . . Weapon 14 | . 6 . 2 . . 2 4 . Energy Gun 4 | . 2 . . . . . 2 . Energy Cannon . | . . . . . . . . . Ballistic Gun 2 | . . . . . . . 2 . Ballistic Cannon 5 | . 3 . 2 . . . . . Launcher 2 | . 1 . . . . 1 . . Special Weapon . | . . . . . . . . . Impact Weapon . | . . . . . . . . . Slashing Weapon 1 | . . . . . . 1 . . Piercing Weapon . | . . . . . . . . . Special Melee Weapon . | . . . . . . . . . Unidentified Prototypes 1 | . . . . . . . 1 . Parts Lost 12 | . 2 2 . . . 5 3 . Power 1 | . . 1 . . . . . . Propulsion 7 | . . 1 . . . 4 2 . Utility . | . . . . . . . . . Weapon 4 | . 2 . . . . 1 1 . Highest Loss Streak 3 | . 2 2 . . . 3 1 . Average Slot Usage (%) 40 | . 27 42 27 33 33 32 57 84 Engine 3 | . 4 14 . . . . 8 7 Flight 12 | . 8 28 11 11 11 7 19 23 Device 5 | . . . 9 11 11 8 1 7 Hackware 10 | . . . 5 11 11 11 17 23 Energy Gun 2 | . 7 . . . . . 4 . Ballistic Gun 1 | . . . . . . . 5 15 Ballistic Cannon 1 | . 5 . 1 . . . . . Naked Turns 57 | . 57 . . . . . . . Heaviest Build 10 | . 6 3 5 1 1 7 10 10 Greatest Support 14 | 3 8 8 4 4 4 8 14 12 Greatest Overweight (x) 2 | . 1 . 1 . . 2 1 . Average Overweight (x) . | . . . . . . . . . Largest Inventory Capacity 4 | 4 4 4 4 4 4 4 4 4 Average Capacity 4 | 4 4 4 4 4 4 4 4 4 Most Carried 4 | 4 4 4 4 4 4 4 4 4 Average Carried 3 | 2 3 4 3 4 3 3 3 3 Final Capacity 4 | 4 4 4 4 4 4 4 4 4 Final Carried 4 | 4 4 4 4 4 4 4 4 4 Class Distribution -------------------- 69% | Mutant 12% | Hacker-Mutant 6% | Assassin 5% | Hacker-Scout 4% | Scout Dominant Class ---------------- Mutant | -10/Materials Mutant | -10/Mines Mutant | -9/Materials Mutant | -9/Mines Mutant | -9/Exiles Assassin | -8/Mines Hacker-Mutant | -8/Materials Hacker-Mutant | -7/Factory Resources | -11 -10 -10 -9 -9 -9 -8 -8 -7 ----------- Run | Scr Mat Min Mat Min Exi Min Mat Fac Matter Collected 608 | 200 69 . 14 . . 57 252 16 Remotely . | . . . . . . . . . Salvage Created 699 | . 275 . 14 . . 18 334 58 Parts 50 | . 14 . 1 . . 8 22 5 Haulers Intercepted 3 | . . . . . . . 2 1 Recyclers Shooed 1 | . . . . . . . 1 . Parts Field Recycled . | . . . . . . . . . Retrieved Matter . | . . . . . . . . . Parts Self-Destructed . | . . . . . . . . . Prevented . | . . . . . . . . . Kills | -11 -10 -10 -9 -9 -9 -8 -8 -7 ------- Run | Scr Mat Min Mat Min Exi Min Mat Fac Combat Hostiles Destroyed 13 | . 5 . . . . 4 4 . Guns 3 | . . . . . . . 3 . Cannons 3 | . 3 . . . . . . . AOE 6 | . 2 . . . . 4 . . Classes Destroyed 7 | . 3 . 1 . . . 3 . Builder 1 | . . . . . . . 1 . Hauler 3 | . . . . . . . 2 1 Recycler 3 | . 2 . . . . . 1 . Operator 1 | . . . 1 . . . . . Swarmer 10 | . 3 . . . . 4 3 . Grunt 2 | . 2 . . . . . . . Sentry 1 | . . . . . . . 1 . Best Kill Streak 4 | . 4 . 1 . . 4 4 1 Combat Bots Only 4 | . 3 . . . . 4 2 . Max Kills in Single Turn 4 | . 2 . 1 . . 4 1 1 Gunslinging . | . . . . . . . . . Exploded 4 | . 2 . . . . 4 . . Melee . | . . . . . . . . . Uniques/NPCs Destroyed . | . . . . . . . . . Combat | -11 -10 -10 -9 -9 -9 -8 -8 -7 -------- Run | Scr Mat Min Mat Min Exi Min Mat Fac Damage Taken 1169 | . 313 60 6 18 . 448 324 . Core 534 | . 82 30 6 18 . 296 102 . Absorbed by Shields . | . . . . . . . . . Core Remaining (%) 64 | 100 . 55 . . . 20 81 . Volleys Fired 64 | . 26 . 1 . . 1 35 1 Largest 2 | . 2 . 1 . . 1 1 2 Hottest 80 | . 80 . 39 . . 30 45 50 Shots Fired 72 | . 33 . 1 . . 1 35 2 Gun 51 | . 14 . . . . . 35 2 Cannon 19 | . 18 . 1 . . . . . Launcher 2 | . 1 . . . . 1 . . Special . | . . . . . . . . . Kinetic 36 | . 18 . 1 . . . 15 2 Thermal 7 | . 7 . . . . . . . Explosive 2 | . 1 . . . . 1 . . Electromagnetic 27 | . 7 . . . . . 20 . Robot Hit Streak 12 | . 6 . 1 . . 2 12 5 Robot Miss Streak 3 | . 1 . . . . . 3 . Penetration Max . | . . . . . . . . . Secondary Targets . | . . . . . . . . . Shots Hit Robots 54 | . 25 . 1 . . 1 25 2 Core Hits 28 | . 9 . 1 . . 9 8 1 Critical Hits . | . . . . . . . . . Critical Kills . | . . . . . . . . . Critical Parts Destroyed . | . . . . . . . . . Melee Attacks . | . . . . . . . . . Impact . | . . . . . . . . . Slashing . | . . . . . . . . . Piercing . | . . . . . . . . . Sneak Attacks . | . . . . . . . . . Combat Hostiles . | . . . . . . . . . Follow-up Attacks . | . . . . . . . . . Damage Inflicted 1250 | . 528 . 22 . . 211 451 38 Guns 597 | . 108 . . . . . 451 38 Cannons 265 | . 243 . 22 . . . . . Explosions 356 | . 174 . . . . 182 . . Melee . | . . . . . . . . . Ramming 32 | . 3 . . . . 29 . . Kinetic 527 | . 243 . 22 . . . 224 38 Thermal 43 | . 43 . . . . . . . Explosive 356 | . 174 . . . . 182 . . Electromagnetic 292 | . 65 . . . . . 227 . Impact . | . . . . . . . . . Slashing . | . . . . . . . . . Piercing . | . . . . . . . . . Highest Corruption . | . . . . . . . . . Average Corruption . | . . . . . . . . . Corruption Purged . | . . . . . . . . . Overload Shots . | . . . . . . . . . Overflow Damage 21 | . 21 . . . . . . . Projectiles . | . . . . . . . . . Explosions 21 | . 21 . . . . . . . Melee . | . . . . . . . . . Knockbacks 4 | . 3 . . . . 1 . . Impact 1 | . . . . . . 1 . . Kinetic 3 | . 3 . . . . . . . Secondary . | . . . . . . . . . Self-Inflicted Damage 52 | . 39 . . . . 13 . . Shots 1 | . 1 . . . . . . . Rammed 9 | . 1 . . . . 8 . . Targets Rammed 9 | . 1 . . . . 8 . . Kicked . | . . . . . . . . . Crushed . | . . . . . . . . . Highest Temperature 93 | . 93 2 . . . 1 13 2 Average Temperature 17 | . 26 2 . . . 1 4 1 Received Heat Transfer 393 | . 132 27 . 9 . 162 63 . Siege Activations . | . . . . . . . . . Robots Corrupted 1 | . . . . . . . 1 . Combat Hostiles 1 | . . . . . . . 1 . Parts Fried 4 | . 1 . . . . . 3 . Impact Corruptions . | . . . . . . . . . Robots Melted . | . . . . . . . . . Combat Hostiles . | . . . . . . . . . Parts Melted . | . . . . . . . . . Heat Transferred 100 | . 100 . . . . . . . Parts Sabotaged . | . . . . . . . . . Parts Stolen . | . . . . . . . . . Parts Stripped . | . . . . . . . . . Power Chain Reactions . | . . . . . . . . . Missiles Intercepted . | . . . . . . . . . Alert | -11 -10 -10 -9 -9 -9 -8 -8 -7 ------- Run | Scr Mat Min Mat Min Exi Min Mat Fac Peak Influence 193 | . 175 87 55 21 . 113 193 70 Average Influence 68 | . 84 81 38 21 . 64 90 56 Maximum Alert Level . | . . . . . . . . . Low Security (%) 100 | 100 100 100 100 100 . 100 100 100 Level 1 . | . . . . . . . . . Level 2 . | . . . . . . . . . Level 3 . | . . . . . . . . . Level 4 . | . . . . . . . . . Level 5 . | . . . . . . . . . High Security . | . . . . . . . . . Max Security . | . . . . . . . . . Squads Dispatched 5 | . 2 . 2 . . . 1 . Investigation 1 | . . . 1 . . . . . Extermination . | . . . . . . . . . Reinforcement 3 | . 2 . 1 . . . . . Assault . | . . . . . . . . . Garrison 1 | . . . . . . . 1 . Intercept . | . . . . . . . . . Construction Impeded . | . . . . . . . . . Haulers Reinforced . | . . . . . . . . . Stealth | -11 -10 -10 -9 -9 -9 -8 -8 -7 --------- Run | Scr Mat Min Mat Min Exi Min Mat Fac Distress Signals 4 | . . . 1 . . . 3 . Communications Jammed . | . . . . . . . . . Distress Signals . | . . . . . . . . . Times Spotted 64 | . 16 4 7 3 . 10 24 . Peak Tracking Total 8 | . 7 4 7 3 . 8 8 . Tactical Retreats 12 | . 1 . . 1 . 5 5 . Traps | -11 -10 -10 -9 -9 -9 -8 -8 -7 ------- Run | Scr Mat Min Mat Min Exi Min Mat Fac Traps Triggered . | . . . . . . . . . Indirectly . | . . . . . . . . . Trap Hack Attempts . | . . . . . . . . . Triggered . | . . . . . . . . . Disarmed . | . . . . . . . . . Reprogrammed . | . . . . . . . . . Reused . | . . . . . . . . . Traps Extracted . | . . . . . . . . . Installed . | . . . . . . . . . Triggered . | . . . . . . . . . Machines | -11 -10 -10 -9 -9 -9 -8 -8 -7 ---------- Run | Scr Mat Min Mat Min Exi Min Mat Fac Machines Disabled . | . . . . . . . . . Max in Single Turn . | . . . . . . . . . Machines Sabotaged . | . . . . . . . . . Garrisons Compromised . | . . . . . . . . . Overloaded Fab Kills . | . . . . . . . . . Fab Network Shutdowns . | . . . . . . . . . Hacking | -11 -10 -10 -9 -9 -9 -8 -8 -7 --------- Run | Scr Mat Min Mat Min Exi Min Mat Fac Machines Accessed 6 | . . . 2 . 1 . 2 1 Terminals 4 | . . . 2 . . . 2 . Fabricators . | . . . . . . . . . Repair Stations . | . . . . . . . . . Recycling Units . | . . . . . . . . . Scanalyzers 1 | . . . . . . . . 1 Garrison Access . | . . . . . . . . . Total Hacks 11 | . . . 4 . 1 . 3 3 Successful 5 | . . . 1 . 1 . 2 1 Failed 6 | . . . 3 . . . 1 2 Catastrophic 1 | . . . 1 . . . . . Database Lockouts . | . . . . . . . . . Manual 7 | . . . 4 . 1 . 2 . Terminals 7 | . . . 4 . . . 3 . Fabricators . | . . . . . . . . . Repair Stations . | . . . . . . . . . Recycling Units . | . . . . . . . . . Scanalyzers 3 | . . . . . . . . 3 Garrison Access . | . . . . . . . . . Terminal Hacks 3 | . . . 1 . 1 . 1 . Terminal Index 1 | . . . 1 . . . . . Unreport Threat 1 | . . . . . . . 1 . EX-Prototype ID Bank 1 | . . . . . 1 . . . Fabricator Hacks . | . . . . . . . . . Repair Station Hacks . | . . . . . . . . . Recycling Unit Hacks . | . . . . . . . . . Scanalyzer 1 | . . . . . . . . 1 Insert Component 1 | . . . . . . . . 1 Garrison Access Hacks . | . . . . . . . . . Unauthorized Hacks 1 | . . . . . . . 1 . Terminals 1 | . . . . . . . 1 . Operators 1 | . . . . . . . 1 . Fabricators . | . . . . . . . . . Repair Stations . | . . . . . . . . . Recycling Units . | . . . . . . . . . Scanalyzers . | . . . . . . . . . Garrison Access . | . . . . . . . . . Data Cores Recovered . | . . . . . . . . . Used . | . . . . . . . . . Hacking Detections 5 | . . . 2 . . . 2 1 Full Trace Events 1 | . . . 1 . . . . . Feedback Events . | . . . . . . . . . Feedback Blocked . | . . . . . . . . . Robot Schematics Acquired . | . . . . . . . . . Robots Built . | . . . . . . . . . Matter . | . . . . . . . . . Time . | . . . . . . . . . Total Robot Build Rating . | . . . . . . . . . Part Schematics Acquired . | . . . . . . . . . Parts Built . | . . . . . . . . . Matter . | . . . . . . . . . Time . | . . . . . . . . . Total Part Build Rating . | . . . . . . . . . Parts Repaired . | . . . . . . . . . Time . | . . . . . . . . . Parts Recycled . | . . . . . . . . . Recycled Matter . | . . . . . . . . . Retrieved Matter . | . . . . . . . . . Retrieved Components . | . . . . . . . . . Parts Scanalyzed 1 | . . . . . . . . 1 Part Schematics Acquired . | . . . . . . . . . Parts Damaged . | . . . . . . . . . Bothacking | -11 -10 -10 -9 -9 -9 -8 -8 -7 ------------ Run | Scr Mat Min Mat Min Exi Min Mat Fac Used RIF Installer . | . . . . . . . . . Robots Hacked . | . . . . . . . . . Non-combat . | . . . . . . . . . Combat . | . . . . . . . . . Robot Hacks Applied . | . . . . . . . . . Relay Couplers Released . | . . . . . . . . . Robots Rewired . | . . . . . . . . . Allies Hacked . | . . . . . . . . . Hacks Repelled . | . . . . . . . . . Allies | -11 -10 -10 -9 -9 -9 -8 -8 -7 -------- Run | Scr Mat Min Mat Min Exi Min Mat Fac Total Allies . | . . . . . . . . . Largest Group . | . . . . . . . . . Highest-Rated Group . | . . . . . . . . . Highest-Rated Ally . | . . . . . . . . . Total Orders . | . . . . . . . . . Ally Attacks . | . . . . . . . . . Total Damage . | . . . . . . . . . Kills . | . . . . . . . . . Allies Corrupted . | . . . . . . . . . Allies Melted . | . . . . . . . . . Intel | -11 -10 -10 -9 -9 -9 -8 -8 -7 ------- Run | Scr Mat Min Mat Min Exi Min Mat Fac Robot Analysis Total . | . . . . . . . . . Derelict Logs Recovered 1 | . . . . 1 . . . . Drone Launches . | . . . . . . . . . Drone Recoveries . | . . . . . . . . . Exploration | -11 -10 -10 -9 -9 -9 -8 -8 -7 ------------- Run | Scr Mat Min Mat Min Exi Min Mat Fac Turns Passed 1107 | 22 196 8 55 129 156 185 329 27 Spaces Moved 2018 | 35 230 21 110 323 387 294 559 59 Core 356 | 35 119 . . . . 163 39 . Treads . | . . . . . . . . . Legs . | . . . . . . . . . Wheels . | . . . . . . . . . Hover . | . . . . . . . . . Flight 1662 | . 111 21 110 323 387 131 520 59 Fastest Speed 34 | 50 37 37 40 40 40 37 34 34 Average Speed 41 | 50 44 39 40 40 40 52 38 34 Slowest Speed 150 | 50 120 40 120 40 40 150 117 34 Overloaded Moves . | . . . . . . . . . Propulsion Burnouts . | . . . . . . . . . Robots Hopped 26 | . 6 2 1 8 . . 9 . Cave-ins Triggered . | . . . . . . . . . Exploration Rate (%) 39 | 3 57 7 17 73 86 73 39 3 Regions Visited 8 Branch Regions 4 Pre-discovered Areas . | . . . . . . . . . Known Exits Taken 1 | . . . . . . . 1 . Unknown Exits Taken 7 | 1 1 1 1 1 1 1 . . Scrap Searched 2 | . . . . . . 2 . . Spaces Dug . | . . . . . . . . . Terrain Destroyed 14 | . 6 . . . . 8 . . Melee . | . . . . . . . . . Projectile . | . . . . . . . . . AOE 14 | . 6 . . . . 8 . . Actions | -11 -10 -10 -9 -9 -9 -8 -8 -7 --------- Run | Scr Mat Min Mat Min Exi Min Mat Fac Total 2179 | 38 284 18 119 314 388 324 630 64 Wait 56 | . 18 . 2 . . 9 27 . Move 1963 | 34 218 17 107 307 386 293 542 59 Hop 21 | . 5 1 1 7 . . 7 . Pick Up 13 | 4 2 . 1 . 1 1 4 . Fast Attach 22 | . 4 . 2 . . 4 10 2 Attach 13 | . 5 . 2 . . 3 3 . Detach 10 | . 4 . 2 . . 3 . 1 Swap . | . . . . . . . . . Drop 8 | . 1 . 1 . 1 2 2 1 Fire 64 | . 26 . 1 . . 1 35 1 Melee . | . . . . . . . . . Ram 9 | . 1 . . . . 8 . . Kick . | . . . . . . . . . Crush . | . . . . . . . . . Escape Stasis . | . . . . . . . . . Rewire . | . . . . . . . . . Trap . | . . . . . . . . . Miscellaneous . | . . . . . . . . . Route ------- -11/Scrapyard -10/Materials (discovered 2 exits: [*Min x2]) -10/Mines -9/Materials -9/Mines (discovered 3 exits: *Mat x2 / *Exi) -9/Exiles -8/Mines -8/Materials (discovered 3 exits: *Fac x2 / [*Sto]) -7/Factory History --------- Turn | Location | Event 12 | -11/Scrapyard | Discovered new exit (range 16) 23 | -11/Scrapyard | Entered Materials 133 | -10/Materials | Discovered new exit (range 14) 215 | -10/Materials | Discovered new exit (range 6) 219 | -10/Materials | Entered Mines 224 | -10/Mines | Discovered new exit (range 9) 227 | -10/Mines | Assembled infested the area 227 | -10/Mines | Entered Materials 227 | -9/Materials | Evolved 2 slots: Propulsion x1, Utility x1 275 | -9/Materials | Discovered new exit (range 16) 282 | -9/Materials | Entered Mines 318 | -9/Mines | Build established: Mutant 327 | -9/Mines | Discovered new exit (range 7) 354 | -9/Mines | Learned location of 1 exit from Materials 401 | -9/Mines | Discovered new exit (range 16) 410 | -9/Mines | Deemed a non-threat by the Exiles lab entrance 410 | -9/Mines | Discovered new exit (range 5) 411 | -9/Mines | Entered Exiles 421 | -9/Exiles | Met 8R-AWN 427 | -9/Exiles | Met EX-HEX 446 | -9/Exiles | Met EX-DEC 455 | -9/Exiles | Visited The Gauntlet 496 | -9/Exiles | Met EX-BIN 502 | -9/Exiles | Aligned with FarCom system 502 | -9/Exiles | Given EX-Vault access code 512 | -9/Exiles | Opened EX-Vault 515 | -9/Exiles | Found Field Lobotomy Kit 525 | -9/Exiles | Warned to stay clear of 0b10 Research branches 564 | -9/Exiles | Discovered new exit (range 10) 567 | -9/Exiles | Left Exiles lab with Field Lobotomy Kit 567 | -9/Exiles | Entered Mines 660 | -8/Mines | Lost 3 parts (3n) 687 | -8/Mines | Core integrity fell below 50% 746 | -8/Mines | Discovered new exit (range 12) 752 | -8/Mines | Entered Materials 752 | -8/Materials | Evolved 2 slots: Propulsion x1, Utility x1 753 | -8/Materials | Identified exit to Factory 780 | -8/Materials | Discovered new exit (range 12) 872 | -8/Materials | Discovered exit to Factory (range 15) 991 | -8/Materials | Garrison activated, responded to threat 1081 | -8/Materials | Entered Factory 1081 | -7/Factory | Evolved 2 slots: Utility x2 1108 | -7/Factory | Self-destructed Last Messages --------------- 01062_ R-06 Scavenger collects Adv. Weight Redist. System. 01063_ U-05 Engineer destroyed. 01066_ R-06 Scavenger collects Adv. Treads. 01067_ U-05 Engineer lays Concrete. 01067_ R-06 Scavenger collects Adv. Treads. 01070_ R-06 Scavenger collects Transport Network Coupler. 01076_ Cesium-ion Thruster destroyed. PARAMETERS=UTILITY_2 LOCATION=FACTORY GOAL=ESCAPE 01081_ Receiving FarCom transmissions... 01088_ Acquired Enh. Optical Array. 01091_ Connecting with Scanalyzer... >>Insert(Med. Storage Unit) Scanning Med. Storage Unit... Ready to analyze. 01096_ Dropped Imp. Sensor Array. 01103_ A-02 Transporter destroyed. 01105_ Acquired 16 matter. 01106_ Acquired Med. Treads. Map ----- +----------------------------------------------------+ | ???????????????????????????????????????????? | | ???????????????????????????????????????????? | | ???????????????????????????????????????????? | | ???????????????????????????????????????????? | | ???????????????????????????????????????????? | | ???????????????????????????????????????????? | | ???????????????????????????????????????????? | | ???????????????????????????????????????????? | | ??????????????????????#######+?????????????? | | ?????????????????????? ??????????????? | | ?????????????????????? ??????????????? | | ??????????Y??????????? ???????????????? | | ?????????????????????? ???????????????? | | ?????????????????????? ????????????????? | | ?????????????????????? #????????????????? | | ????????????????????? #????????????????? | | ????????????????????? #????????????????? | | ????????????????????? #????????????????? | | ????????????????????? #????????????????? | | ????????????????????? +????????????????? | | ????????????????????? #????????????????? | | ????????????????????? #????????????????? | | ?????????????######## #????????????????? | | ?????????????# +????????????????? | | ?????????????# !]] #????????????????? | | ?????????????# !@%=* #????????????????? | | ?????????????# ]]! #????????????????? | | ?############# = #????????????????? | | # # ####+###????????????????? | | ?? # #???????????????????????? | | ??? # #???????????????????????? | | ??? """ """ # #???????????????????????? | | ??? """ """ # #???????????????????????? | | ??? """ """ + +???????????????????????? | | #" # #???????????????????????? | | #T """ """ # #???????????????????????? | | #" """ """ #^ #???????????????????????? | | #" """ """ # ^ #???????????????????????? | | ?? # #???????????????????????? | | ??? # #???????????????????????? | | #?############ #???????????????????????? | | # # ! #???????????????????????? | | # """"""""" # ##########??????????????? | | # # #[ ! #??????????????? | | # """"""""" # # """ #??????????????? | | # # #! """ #??????????????? | | # """"""""" + # """ #??????????????? | | # # + #??????????????? | | # """"""""" # # #??????????????? | | # # # " " #??????????????? | +----------------------------------------------------+ Best States ------------- Heat Dissipation 34 Energy Generation 10 Energy Capacity 125 Matter Stores 300 Matter Capacity 300 Sight Range 22 Robot Scan Range 13 Terrain Scan Range 20 Terrain Scan Density 10 Evasion (%) 63 Offensive Hacking 10 Defensive Hacking 20 Item Schematics ----------------- None Robot Schematics ------------------ None Fabricated ------------ Nothing Alien Tech Used ----------------- None Achievements -------------- None Challenges ------------ None Game ------ Seed AlertChromaticFrame Manual? 0 Play Time 00:17:24 Cumulative 227.4 hours Start 2020.05.16 @ 15:07:23 End 2020.05.16 @ 15:45:05 Sessions 1 Manual Loads 0 Difficulty Rogue Special Mode None Game No. 359 Rogue 359 Adventurer 0 Explorer 0 Win Type - Total 4 Types 2/0/1/1/0/0/0 Lore% 78 Gallery% 78 Achievement% 60 Wizard Run 0 Options --------- ASCII 0 Keyboard 1 Movement Numpad Keybinds 0 Fullscreen 2 Font 18/X11Bold Map View 76x50 Tactical HUD 1 Map Filters NONE Filters NONE Steam 1 RUN: 22f2bcd1-5ab3-414f-abe5-84dcb201abcb